bitfinex-derivatives/quotes_SOLF0:USTF0_20250320
["timestamp","ask_amount","ask_price","bid_price","bid_amount"]
[1742465788259,0.05045305,131.67,131.64,7.5958]
[1742465788660,0.05045305,131.67,131.61,2.0313]
[1742465789067,37.95045305,131.67,131.61,2.0313]
[1742465789463,37.95045305,131.67,131.63,7.5964]
[1742465789664,4.89250133,131.66,131.6,2.32451921]
[1742465789872,0.05045305,131.67,131.61,27.89611087]
[1742465790070,37.94,131.7,131.67,7.5942]
[1742465790270,4.89315432,131.69,131.67,7.5942]
[1742465790768,4.89315432,131.69,131.68,7.594]
[1742465790970,40.79607386,131.73,131.67,37.84]
[1742465791167,0.04890438,131.7,131.68,37.84]
[1742465791470,0.04890438,131.7,131.69,7.5934]
[1742465791672,40.79607386,131.73,131.68,39.8161]
[1742465791866,4.90897222,131.72,131.68,39.86645568]
[1742465792373,4.90897222,131.71,131.7,7.5928]
[1742465792576,4.90897222,131.72,131.68,39.86645568]
[1742465792772,40.79607386,131.73,131.68,39.86645568]
[1742465792973,0.04816164,131.71,131.68,39.86645568]
[1742465793173,4.96496756,131.71,131.68,39.86645568]
[1742465793471,0.04816164,131.71,131.68,39.86645568]
[1742465793671,0.04816164,131.71,131.7,7.5928]
[1742465794172,0.04816164,131.71,131.68,2.04645568]
[1742465794476,0.04816164,131.71,131.68,0.05035568]
[1742465794672,0.04816164,131.71,131.68,7.64395568]
[1742465794874,4.92192672,131.7,131.68,0.05035568]
[1742465795071,4.92192672,131.69,131.68,0.05035568]
[1742465795775,12.51532672,131.69,131.68,0.05035568]
[1742465795978,12.51625138,131.69,131.68,0.05035568]
[1742465796869,32.81896225,131.69,131.61,4.1167]
[1742465797075,4.92285138,131.68,131.62,38.06]
[1742465797275,4.92285138,131.67,131.64,7.596]
[1742465797479,4.92285138,131.66,131.62,38.06]
[1742465797678,38.0,131.71,131.62,65.95611087]
[1742465797977,0.05758868,131.68,131.62,65.95611087]
[1742465798172,4.92567102,131.67,131.62,65.95611087]
[1742465798371,4.92567102,131.67,131.66,7.5951]
[1742465798568,0.05758868,131.68,131.62,65.95611087]
[1742465799582,0.05758868,131.68,131.67,7.5945]
[1742465802776,42.76777386,131.77,131.67,2.141]
[1742465803076,4.93147926,131.76,131.68,67.88001087]
[1742465803286,4.93147926,131.75,131.74,7.5905]
[1742465803584,40.79607386,131.77,131.74,37.9]
[1742465803792,4.93376925,131.76,131.74,37.949602]
[1742465803987,4.93376925,131.76,131.75,7.5899]
[1742465804378,4.93376925,131.76,131.74,37.949602]
[1742465804577,0.05334492,131.77,131.74,37.949602]
[1742465804778,4.93419969,131.76,131.74,37.949602]
[1742465805378,12.52389969,131.76,131.74,0.049602]
[1742465805683,0.05334492,131.77,131.74,0.049602]
[1742465805879,4.93437434,131.76,131.74,0.049602]
[1742465807184,7.5899,131.75,131.74,0.049602]
[1742465807385,12.52427434,131.75,131.74,0.049602]
[1742465808187,4.93437434,131.75,131.74,0.049602]
[1742465808389,4.93437434,131.76,131.69,37.6]
[1742465808587,4.93437434,131.75,131.69,37.6]
[1742465808787,4.93437434,131.74,131.69,37.6]
[1742465809486,4.98794775,131.73,131.69,37.6]
[1742465809687,0.05357341,131.73,131.69,37.6]
[1742465810384,7.64487341,131.73,131.69,45.1929]
[1742465810586,0.05357341,131.73,131.69,37.6]
[1742465810989,7.64517341,131.73,131.69,45.1929]
[1742465811289,0.05357341,131.73,131.69,45.1929]
[1742465811479,0.05357341,131.73,131.69,37.6]
[1742465812081,0.05357341,131.73,131.7,7.5923]
[1742465812478,0.05357341,131.73,131.69,37.6]
[1742465813184,4.93375331,131.72,131.68,2.0839]
[1742465813386,0.05357341,131.73,131.68,2.0839]
[1742465813591,0.05357341,131.73,131.68,39.5239]
[1742465815385,0.05357341,131.73,131.72,7.5917]
[1742465815685,0.05357341,131.73,131.72,45.0717]
[1742465818287,0.05357341,131.73,131.68,29.98001087]
[1742465818493,0.05357341,131.73,131.7,37.24]
[1742465818694,7.64497341,131.73,131.7,37.24]
[1742465819298,0.05357341,131.73,131.7,37.24]
[1742465819897,7.64497341,131.73,131.7,44.8325]
[1742465820098,0.05357341,131.73,131.7,37.24]
[1742465820302,4.93944452,131.72,131.68,37.18]
[1742465820502,4.93944452,131.72,131.68,37.2]
[1742465821208,4.93944452,131.72,131.66,2.0326]
[1742465821409,4.93944452,131.72,131.7,7.5924]
[1742465821606,0.0492564,131.7,131.67,37.16]
[1742465821797,4.98870092,131.7,131.67,37.16]
[1742465822001,0.0492564,131.7,131.67,37.16]
[1742465822198,0.0492564,131.7,131.68,7.594]
[1742465822400,0.0492564,131.7,131.67,37.16]
[1742465822605,4.9916333,131.7,131.65,2.058]
[1742465822811,0.0492564,131.7,131.66,37.08]
[1742465823004,0.0492564,131.7,131.64,250.56]
[1742465823206,7.5944,131.68,131.65,44.8955]
[1742465823405,4.94663384,131.67,131.63,37.26]
[1742465823711,4.94663384,131.66,131.6,39.64451921]
[1742465823906,12.54283384,131.65,131.6,2.32451921]
[1742465824105,4.94663384,131.64,131.6,2.32451921]
[1742465824306,4.94663384,131.63,131.62,7.5971]
[1742465824706,4.94663384,131.63,131.6,2.32451921]
[1742465825013,0.05236512,131.64,131.63,7.5969]
[1742465825206,655.2842,131.72,131.61,37.7]
[1742465825406,4.95715696,131.71,131.61,37.7]
[1742465825607,4.95715696,131.7,131.61,37.7]
[1742465825813,4.95715696,131.69,131.61,37.7]
[1742465826008,12.55115696,131.68,131.61,37.7]
[1742465826210,4.95715696,131.67,131.61,37.7]
[1742465826514,5.00567764,131.66,131.63,7.65099138]
[1742465826711,4.95715696,131.65,131.63,0.05449138]
[1742465827107,4.95715696,131.64,131.63,0.05449138]
[1742465827310,0.04852068,131.66,131.63,0.05449138]
[1742465827311,4.95715696,131.65,131.63,0.05449138]
[1742465827507,4.95715696,131.64,131.63,0.05449138]
[1742465827711,0.04852068,131.66,131.63,0.05449138]
[1742465827906,0.04852068,131.66,131.63,38.13449138]
[1742465827907,4.95246533,131.65,131.63,38.13449138]
[1742465828113,4.95246533,131.65,131.64,7.5963]
[1742465828304,4.95246533,131.65,131.63,38.13449138]
[1742465828508,0.04852068,131.66,131.63,38.13449138]
[1742465828708,0.04852068,131.66,131.65,7.5957]
[1742465828914,0.04852068,131.66,131.63,38.13449138]
[1742465829216,0.04852068,131.66,131.63,40.25279138]
[1742465829406,0.04852068,131.66,131.65,7.5957]
[1742465830010,0.04852068,131.66,131.63,42.20209138]
[1742465830506,0.04852068,131.66,131.65,7.5957]
[1742465831311,4.94947968,131.71,131.64,27.89611087]
[1742465831514,4.94947968,131.7,131.64,27.89611087]
[1742465831714,27.89611087,131.75,131.64,27.89611087]
[1742465832019,4.95056795,131.74,131.64,27.89611087]
[1742465832317,4.95056795,131.73,131.68,0.05770492]
[1742465832519,0.04948153,131.7,131.69,37.96]
[1742465832720,4.95056795,131.71,131.69,45.60467515]
[1742465832917,0.05410599,131.71,131.69,38.01127515]
[1742465833218,4.9514335,131.7,131.69,0.05127515]
[1742465834911,32.84754437,131.7,131.63,2.1183]
[1742465835116,4.9514335,131.69,131.61,38.3]
[1742465835312,43.2314335,131.68,131.61,38.3]
[1742465835512,4.9514335,131.67,131.6,252.94451921]
[1742465835718,66.17611087,131.68,131.6,2.32451921]
[1742465835719,4.9514335,131.66,131.6,2.32451921]
[1742465835920,4.9514335,131.65,131.6,2.32451921]
[1742465836116,4.9514335,131.64,131.62,0.0559135]
[1742465836420,4.9514335,131.63,131.62,7.6533135]
[1742465837321,4.9514335,131.63,131.57,2.02]
[1742465837322,263.1714335,131.63,131.52,30.87468849]
[1742465837518,27.89611087,131.54,131.47,38.38451873]
[1742465837719,7.6044,131.5,131.49,176.71174358]
[1742465837920,71.07891712,131.5,131.46,31.55757634]
[1742465838217,55.79222174,131.47,131.45,84.15353692]
[1742465838410,409.10053988,131.46,131.43,221.30700988]
[1742465838611,27.89611087,131.44,131.43,221.30700988]
[1742465838812,40.44445075,131.44,131.43,221.30700988]
[1742465839122,65.73778561,131.44,131.43,203.67580988]
[1742465839422,7.6096,131.41,131.4,129.30367699]
[1742465839720,348.11958561,131.41,131.4,110.14177699]
[1742465839916,7.6119,131.37,131.36,415.9038169]
[1742465840115,85.10944573,131.37,131.36,415.9038169]
[1742465840311,105.23064424,131.37,131.36,369.12653079]
[1742465840616,105.23064424,131.37,131.25,519.8797712]
[1742465840617,143.20818997,131.37,131.25,519.8797712]
[1742465840821,53.20594573,131.29,131.25,519.8797712]
[1742465841022,348.61524424,131.29,131.25,519.8797712]
[1742465841421,350.47040938,131.29,131.25,519.8797712]
[1742465841621,350.47040373,131.29,131.17,7.6234]
[1742465841817,7.6173,131.28,131.15,85.26944573]
[1742465842018,45.58944573,131.26,131.21,7.61]
[1742465842220,39.76,131.25,131.2,7.61]
[1742465842415,39.81485847,131.25,131.2,7.61]
[1742465842615,39.81485847,131.25,131.14,45.58944573]
[1742465842818,39.96,131.24,131.22,7.61]
[1742465843124,40.015191,131.24,131.22,7.61]
[1742465843322,40.015191,131.24,131.17,85.60944573]
[1742465843523,40.015191,131.24,131.19,7.61]
[1742465843723,40.015191,131.24,131.21,7.61]
[1742465844016,170.30431774,131.23,131.21,7.61]
[1742465844210,170.30431774,131.23,131.15,45.58944573]
[1742465844416,170.30431774,131.23,131.21,7.61]
[1742465844612,170.30431774,131.23,131.2,7.61]
[1742465844816,170.35692846,131.23,131.19,7.61]
[1742465845025,170.35692846,131.23,129.58,59.34700868]
[1742465845223,170.35692846,131.23,131.18,7.61]
[1742465845415,170.30431774,131.23,131.2,7.61]
[1742465845620,0.0492814,131.22,131.2,7.61]
[1742465846121,405.08,131.21,131.05,3.9342]
[1742465846326,45.58944573,131.11,131.07,7.61]
[1742465846524,85.70944573,131.11,131.06,7.61]
[1742465846725,0.05053504,131.1,130.99,85.70944573]
[1742465846917,45.58944573,131.08,131.01,76.11]
[1742465847118,45.58944573,131.05,131.01,7.61]
[1742465847323,40.1,131.04,130.95,6.1031]
[1742465847623,40.1,131.04,130.97,7.61]
[1742465847624,365.0,131.03,130.97,7.61]
[1742465847829,45.58944573,131.0,130.86,4.1487]
[1742465848125,40.14,130.99,130.85,45.58944573]
[1742465848326,45.58944573,130.91,130.83,76.1]
[1742465848523,0.05644884,130.94,130.83,86.06944573]
[1742465848727,45.58944573,130.97,130.86,45.58944573]
[1742465848728,86.20944573,130.97,130.86,45.58944573]
[1742465849028,1.515e-05,130.9,130.89,7.6398]
[1742465849223,40.58,131.06,130.87,251.28]
[1742465849431,40.58,131.06,130.92,45.58944573]
[1742465849725,118.1256236,130.98,130.95,45.58944573]
[1742465849924,111.6196236,130.98,130.96,40.64]
[1742465850124,35.5196236,130.98,130.96,40.64]
[1742465850319,20.1460885,130.98,130.97,7.6351]
[1742465850522,191.55014944,130.99,130.97,45.58944573]
[1742465850726,14.37783794,130.99,130.98,7.6346]
[1742465850924,11.14883794,130.99,130.98,7.6346]
[1742465851125,220.4802868,131.01,130.98,93.80944573]
[1742465851325,249.45542416,131.05,130.99,251.52]
[1742465851525,249.45542416,131.05,131.04,45.58944573]
[1742465851727,249.45542416,131.05,131.04,93.76054573]
[1742465851926,0.61723,131.14,131.04,139.35889146]
[1742465852121,0.61723,131.14,131.11,7.6265]
[1742465852322,0.61723,131.14,131.11,40.66]
[1742465852630,3e-05,131.14,131.13,7.6266]
[1742465853024,3e-05,131.14,131.13,15.2466]
[1742465853224,8.078e-05,131.15,131.14,7.626]
[1742465853428,8.078e-05,131.15,131.14,94.85544573]
[1742465853625,49.38295531,131.22,131.21,7.6219]
[1742465853626,41.74295531,131.22,131.21,7.6219]
[1742465853832,41.74295531,131.22,131.19,41.6]
[1742465854132,41.74295531,131.22,131.21,7.6219]
[1742465854334,41.74295531,131.22,131.19,41.6]
[1742465854630,41.7951319,131.22,131.19,41.65722715]
[1742465854835,7.69217659,131.22,131.21,7.6219]
[1742465855134,7.69217659,131.22,131.19,0.05722715]
[1742465855932,0.05217659,131.22,131.21,7.6219]
[1742465856133,7.69217659,131.22,131.19,0.05722715]
[1742465856430,49.27217659,131.22,131.19,0.05722715]
[1742465856637,7.69217659,131.22,131.19,0.05722715]
[1742465857135,7.69217659,131.22,131.19,7.68022715]
[1742465857337,49.33217659,131.22,131.19,0.05722715]
[1742465857533,45.58944573,131.2,131.12,251.56]
[1742465857733,41.62,131.19,131.14,7.6255]
[1742465858031,41.62,131.19,131.07,251.56]
[1742465858032,45.58944573,131.17,131.07,251.56]
[1742465858235,45.58944573,131.14,131.07,251.56]
[1742465858532,41.62,131.13,131.07,251.56]
[1742465858732,9.39e-06,131.12,131.11,7.6277]
[1742465858933,9.39e-06,131.12,131.11,49.2077]
[1742465859232,41.58,131.17,131.14,7.6259]
[1742465859439,41.58,131.17,131.08,41.58]
[1742465859734,49.22,131.17,131.08,41.58]
[1742465859934,0.05715327,131.14,131.11,0.05701502]
[1742465860335,7.69715327,131.14,131.12,7.6272]
[1742465860531,49.19715327,131.14,131.11,0.05701502]
[1742465860830,45.58944573,131.12,131.11,0.05701502]
[1742465861032,45.58944573,131.12,131.0,251.58]
[1742465861236,45.58944573,131.09,131.0,293.08]
[1742465861531,45.58944573,131.09,131.07,7.6301]
[1742465861736,7.64,131.09,131.0,338.66944573]
[1742465862137,406.44,131.17,131.03,45.58944573]
[1742465862341,2.019e-05,131.06,131.04,41.44]
[1742465862529,49.08,131.17,131.04,41.44]
[1742465863537,0.05528543,131.12,131.09,0.04933905]
[1742465863734,0.05528543,131.12,131.11,7.6277]
[1742465863936,41.32,131.2,131.1,41.38]
[1742465864142,7.64,131.2,131.1,86.96944573]
[1742465864437,7.64,131.2,131.1,41.38]
[1742465864831,7.64,131.2,131.19,7.6231]
[1742465865029,7.64,131.2,131.13,41.26]
[1742465865234,7.64,131.2,131.18,0.05309522]
[1742465865434,7.64,131.2,131.18,7.67578076]
[1742465865631,7.69750596,131.2,131.18,0.05218076]
[1742465865832,45.58944573,131.19,131.03,251.64]
[1742465866043,45.58944573,131.14,131.04,41.28]
[1742465866237,45.58944573,131.14,131.03,297.22944573]
[1742465866439,53.22944573,131.14,131.03,251.64]
[1742465866636,53.22944573,131.14,131.04,41.3]
[1742465866842,45.58944573,131.11,131.03,292.96]
[1742465867037,45.58944573,131.05,130.97,41.32]
[1742465867239,45.58944573,131.05,130.97,41.42]
[1742465867444,53.22944573,131.05,131.01,7.6333]
[1742465867747,53.22944573,131.05,130.96,41.4]
[1742465867945,53.22944573,131.05,130.97,41.36]
[1742465868148,53.22944573,131.05,131.0,7.6337]
[1742465868149,0.05448812,131.02,131.0,7.6337]
[1742465868445,0.05448812,131.02,130.99,0.05440748]
[1742465868647,7.69448812,131.02,131.01,7.6336]
[1742465868835,0.05448812,131.02,131.01,7.6336]
[1742465869041,8.812e-05,131.02,131.01,7.6336]
[1742465872145,7.64008812,131.02,130.99,0.05440748]
[1742465872642,53.22953385,131.02,130.99,0.05440748]
[1742465872841,45.58953385,131.02,130.99,0.05440748]
[1742465873043,53.22953385,131.02,130.99,0.05440748]
[1742465873243,41.52,131.01,130.89,251.72]
[1742465873442,45.58944573,130.96,130.89,251.72]
[1742465873745,42.34,130.97,130.89,251.72]
[1742465873940,42.34,130.99,130.89,251.72]
[1742465874146,7.64,130.99,130.91,45.58944573]
[1742465874340,7.64,130.99,130.92,42.3]
[1742465874540,2.092e-05,130.96,130.94,45.64029467]
[1742465874742,7.64,131.03,130.95,294.16]
[1742465874944,42.34,131.08,130.97,45.58944573]
[1742465875147,49.98,131.08,130.98,42.34]
[1742465875445,49.98,131.08,130.98,87.92944573]
[1742465875646,0.04891499,131.04,131.02,0.05610387]
[1742465875837,0.04891499,131.04,131.03,7.6324]
[1742465876042,1.499e-05,131.04,131.03,7.6324]
[1742465876242,2.0623,131.1,131.02,42.51610387]
[1742465876437,9.7023,131.1,131.02,42.46]
[1742465877150,7.64,131.1,131.02,42.46]
[1742465877344,0.0496934,131.07,131.05,0.05484127]
[1742465877646,87.98944573,131.15,131.06,42.38]
[1742465877851,95.62944573,131.15,131.06,42.38]
[1742465878546,95.62944573,131.15,131.11,7.6276]
[1742465878747,0.05402861,131.12,131.09,0.04836727]
[1742465878948,0.05402861,131.12,131.06,42.38]
[1742465879246,7.69402861,131.12,131.09,0.05009073]
[1742465879643,7.69402861,131.12,131.1,7.6283]
[1742465880040,7.69402861,131.12,131.09,0.05009073]
[1742465881246,0.05402861,131.12,131.11,7.6277]
[1742465881644,2.0481,131.2,131.11,42.3]
[1742465881839,7.64,131.2,131.11,42.3]
[1742465882039,7.64,131.2,131.13,45.58944573]
[1742465882351,38.40144862,131.37,131.2,381.65]
[1742465882540,38.40144862,131.37,131.32,45.58944573]
[1742465882742,46.04144862,131.37,131.33,259.3949]
[1742465882950,0.04883471,131.36,131.34,294.32]
[1742465883153,1.95394548,131.36,131.34,294.32]
[1742465883347,1.95394548,131.36,131.34,251.78]
[1742465883556,45.63828044,131.36,131.24,42.58]
[1742465883749,53.22796878,131.36,131.25,42.58]
[1742465883946,22.65,131.29,130.86,30.72439264]
[1742465884147,22.65,131.27,130.88,45.24]
[1742465884452,45.58944573,131.18,131.06,45.58944573]
[1742465884654,45.22,131.19,131.15,122.42620826]
[1742465884951,4.86935671,131.18,131.15,122.42620826]
[1742465885156,53.17913407,131.25,131.15,167.64620826]
[1742465885454,0.0568055,131.18,131.15,213.28378419]
[1742465885650,7.58968834,131.25,131.15,213.23565399]
[1742465885852,0.04892268,131.18,131.15,213.29060921]
[1742465886047,7.58968834,131.25,131.15,213.23565399]
[1742465886252,0.0520155,131.18,131.15,167.69581628]
[1742465886454,45.58944573,131.22,131.15,122.42620826]
[1742465886754,98.27913407,131.25,131.15,0.05152091]
[1742465886755,0.05794954,131.18,131.15,0.05152091]
[1742465887149,7.58968834,131.18,131.12,2.0512]
[1742465887447,7.63884466,131.18,131.15,0.05515871]
[1742465888263,0.04915632,131.18,131.15,45.11515871]
[1742465888949,45.58944573,131.27,131.15,98.32460444]
[1742465889155,45.58944573,131.27,131.21,7.6225]
[1742465889352,53.17913407,131.27,131.2,45.04]
[1742465889653,7.58968834,131.27,131.2,45.04]
[1742465890156,0.04885666,131.25,131.22,0.04874465]
[1742465890552,7.638545,131.25,131.22,0.04874465]
[1742465891752,0.04885666,131.25,131.22,0.04874465]
[1742465891953,0.04885666,131.25,131.22,7.67044465]
[1742465892153,7.638545,131.25,131.22,0.04874465]
[1742465892449,0.04885666,131.25,131.22,0.04874465]
[1742465893259,7.638545,131.25,131.22,0.04874465]
[1742465894163,45.58944573,131.23,131.18,44.62]
[1742465894658,53.17913407,131.23,131.17,251.66]
[1742465894955,7.58968834,131.23,131.17,251.66]
[1742465895348,0.05749089,131.21,131.19,0.05384347]
[1742465896058,0.05749089,131.21,131.2,7.6232]
[1742465896463,0.05749089,131.21,131.19,44.43384347]
[1742465897063,0.05749089,131.21,131.2,7.6233]
[1742465897260,0.05749089,131.21,131.19,44.43384347]
[1742465897461,9.089e-05,131.21,131.2,7.6233]
[1742465897658,40.0397786,131.3,131.2,45.58944573]
[1742465897861,47.62946694,131.3,131.21,1.9697]
[1742465898057,47.62946694,131.3,131.29,7.618]
[1742465898257,143.88731858,131.32,131.27,44.34]
[1742465898258,2.071,131.31,131.27,44.34]
[1742465898460,7.58968834,131.31,131.28,44.32]
[1742465898658,7.58968834,131.31,131.3,7.6175]
[1742465898963,7.63975827,131.31,131.28,44.37544997]
[1742465899864,7.63975827,131.31,131.3,7.6175]
[1742465900054,7.63975827,131.31,131.28,44.37544997]
[1742465900257,7.63975827,131.31,131.3,7.6175]
[1742465900461,0.05006993,131.31,131.3,7.6175]
[1742465901360,7.63975827,131.31,131.28,44.37544997]
[1742465901564,7.63975827,131.31,131.28,44.19544997]
[1742465901763,7.63975827,131.31,131.3,7.6175]
[1742465902158,7.63975827,131.31,131.28,0.05544997]
[1742465903269,0.05006993,131.31,131.3,7.6175]
[1742465905568,7.63975827,131.31,131.28,0.05544997]
[1742465905961,7.63975827,131.31,131.29,7.6176]
[1742465906161,7.63975827,131.31,131.28,0.05544997]
[1742465908067,7.6114,131.41,131.36,7.6135]
[1742465908365,45.58944573,131.4,131.36,43.68]
[1742465908661,45.58944573,131.4,131.36,7.6138]
[1742465908866,53.17913407,131.4,131.33,43.64]
[1742465909260,0.0488154,131.38,131.35,0.05179853]
[1742465909662,7.63850374,131.38,131.35,0.05179853]
[1742465909867,7.63850374,131.38,131.37,7.6142]
[1742465910470,7.63850374,131.38,131.35,0.05179853]
[1742465910669,7.63850374,131.38,131.3,251.44]
[1742465910968,47.57984573,131.37,131.31,43.5]
[1742465911171,47.57984573,131.37,131.3,251.44]
[1742465911363,55.16953407,131.37,131.3,251.44]
[1742465912066,0.05370036,131.35,131.33,7.6161]
[1742465912265,0.05370036,131.35,131.32,0.05096226]
[1742465912467,7.6433887,131.35,131.32,0.05096226]
[1742465913171,0.05370036,131.35,131.34,7.6159]
[1742465916361,0.05370036,131.35,131.33,43.22]
[1742465916566,0.05370036,131.35,131.32,43.03096226]
[1742465917567,7.6433887,131.35,131.32,43.03096226]
[1742465917973,7.6433887,131.35,131.32,0.05096226]
[1742465918969,7.6433887,131.35,131.32,7.66826226]
[1742465919272,7.6433887,131.35,131.32,0.05096226]
[1742465919472,42.91370036,131.35,131.25,253.342]
[1742465919673,1.9968,131.34,131.26,42.86]
[1742465920069,7.58968834,131.34,131.29,45.58944573]
[1742465920276,7.58968834,131.34,131.3,42.82]
[1742465920575,7.58968834,131.34,131.33,7.6173]
[1742465920874,0.05615713,131.33,131.31,0.05247495]
[1742465921275,7.64584547,131.33,131.31,0.05247495]
[1742465921973,0.05615713,131.33,131.32,7.6178]
[1742465922573,5.713e-05,131.33,131.32,7.6178]
[1742465922771,5.713e-05,131.33,131.31,88.38192068]
[1742465923377,5.713e-05,131.33,131.32,7.6178]
[1742465924571,40.0397786,131.4,131.39,7.6138]
[1742465924777,47.62946694,131.4,131.35,42.58]
[1742465925176,47.62946694,131.4,131.39,7.6138]
[1742465925368,47.62946694,131.4,131.35,42.58]
[1742465925674,47.62946694,131.4,131.37,7.6145]
[1742465925873,0.04921074,131.39,131.36,0.05405085]
[1742465926280,7.63889908,131.39,131.36,0.05405085]
[1742465926475,7.63889908,131.39,131.38,7.6144]
[1742465926877,7.63889908,131.39,131.36,0.05405085]
[1742465927080,7.63889908,131.39,131.37,7.6149]
[1742465927475,7.63889908,131.39,131.36,0.05405085]
[1742465927673,7.63889908,131.39,131.36,7.66925085]
[1742465927972,7.63889908,131.39,131.31,251.32]
[1742465927973,42.44,131.38,131.31,251.32]
[1742465928175,42.44,131.38,131.35,7.6158]
[1742465928374,50.02968834,131.38,131.31,251.32]
[1742465928975,0.05512539,131.36,131.31,251.32]
[1742465929183,7.64481373,131.36,131.35,7.6158]
[1742465929581,7.64481373,131.36,131.33,0.05320087]
[1742465930174,7.64481373,131.36,131.35,7.6161]
[1742465930378,7.64481373,131.36,131.33,0.05320087]
[1742465931278,7.64481373,131.36,131.35,7.6161]
[1742465931583,7.64481373,131.36,131.33,0.05320087]
[1742465931782,7.64481373,131.36,131.34,7.6164]
[1742465932080,7.64481373,131.36,131.33,0.05320087]
[1742465933276,41.84,131.35,131.26,251.28]
[1742465933480,7.6169,131.34,131.3,7.6189]
[1742465933680,49.42968834,131.35,131.26,251.28]
[1742465933975,49.42968834,131.35,131.28,45.58944573]
[1742465934181,49.42968834,131.35,131.28,87.30944573]
[1742465934381,0.0543,131.33,131.3,0.05381015]
[1742465934781,7.64398834,131.33,131.3,0.05381015]
[1742465934980,7.64398834,131.33,131.31,7.6181]
[1742465935182,7.64398834,131.33,131.3,0.05381015]
[1742465935580,7.64398834,131.33,131.32,7.6178]
[1742465936682,7.64398834,131.33,131.31,7.6182]
[1742465936883,7.64398834,131.33,131.3,0.05381015]
[1742465938583,7.64398834,131.33,131.32,7.6178]
[1742465939283,0.0543,131.33,131.32,7.6178]
[1742465940386,0.0543,131.33,131.3,0.05381015]
[1742465940588,7.64398834,131.33,131.3,0.05381015]
[1742465941189,2.0676,131.32,131.22,47.56104573]
[1742465941485,41.1,131.31,131.23,41.1]
[1742465941686,41.1,131.31,131.22,47.56104573]
[1742465941879,45.58944573,131.29,131.16,610.3]
[1742465942079,41.22,131.28,131.2,7.6247]
[1742465942281,41.22,131.28,131.22,0.05419998]
[1742465942282,7.6231,131.23,131.22,0.05419998]
[1742465942481,41.22,131.24,131.22,0.05419998]
[1742465942887,0.04841274,131.25,131.22,0.05419998]
[1742465943086,0.04841274,131.25,131.24,7.6225]
[1742465943283,7.63810108,131.25,131.22,41.31419998]
[1742465943889,7.63810108,131.25,131.22,0.05419998]
[1742465944790,7.63810108,131.25,131.23,7.6227]
[1742465945083,7.6226,131.24,131.22,0.05419998]
[1742465945288,41.02,131.24,131.14,45.58944573]
[1742465945481,49.69594573,131.23,131.1,294.5158]
[1742465945683,7.627,131.17,131.1,251.38]
[1742465945883,41.04,131.17,131.1,251.38]
[1742465946191,11.69618834,131.23,131.14,45.58944573]
[1742465946192,41.0,131.21,131.14,45.58944573]
[1742465946389,41.0,131.21,131.12,0.05712552]
[1742465946590,0.0517033,131.15,131.12,0.05712552]
[1742465946885,41.0,131.18,131.1,292.38]
[1742465947092,0.05733423,131.15,131.12,0.05282491]
[1742465947493,7.64702257,131.15,131.12,0.05282491]
[1742465948594,7.64702257,131.15,131.14,7.6283]
[1742465948790,7.64702257,131.15,131.12,0.05282491]
[1742465949096,45.58944573,131.14,131.07,7.6323]
[1742465949393,49.65054573,131.14,131.02,88.67964573]
[1742465949593,57.24023407,131.14,131.02,88.67964573]
[1742465949787,11.65078834,131.14,131.02,88.67964573]
[1742465950093,52.45078834,131.14,131.07,0.05542375]
[1742465950495,0.0497811,131.12,131.07,0.05542375]
[1742465950696,40.76,131.11,131.07,0.05542375]
[1742465951197,48.34968834,131.11,131.01,86.30944573]
[1742465951495,48.34968834,131.11,131.01,45.58944573]
[1742465951791,48.34968834,131.11,131.01,86.22944573]
[1742465952200,7.58968834,131.11,131.01,86.22944573]
[1742465952400,0.05482204,131.07,131.05,0.05721068]
[1742465952692,0.05482204,131.07,131.06,7.6329]
[1742465953198,40.0397786,131.22,131.21,7.6242]
[1742465953392,47.62946694,131.22,131.19,40.98]
[1742465953694,47.62946694,131.22,131.17,45.58944573]
[1742465953888,55.25316694,131.22,131.17,45.58944573]
[1742465954088,40.0397786,131.2,131.17,45.58944573]
[1742465954289,40.0397786,131.2,131.19,7.6254]
[1742465954494,47.62946694,131.2,131.18,0.05752528]
[1742465954893,47.62946694,131.2,131.19,7.6254]
[1742465955996,80.14505949,131.21,131.2,7.6248]
[1742465956198,200.2242729,131.23,131.19,40.82]